Cogmind - Beta 10.2 @@@ ROGUE MODE // 2021.04.05 @ 21:46:52 Player: Nalzok Result: Destroyed by Lightning with EMDS Performance ------------- Evolutions (5) 2500 Regions Visited (15) 3000 Robots Destroyed (114) 570 Value Destroyed (5235) 5235 Prototype IDs (31) 620 Alien Tech Used (0) 0 Bonus (2372) 2372 TOTAL SCORE: 14297 Bonus ------- High Alert Combat Kills 442 Follower Combat Kills 1686 Network Hubs Disabled 400 Aligned with FarCom 300 Friendly Fire -456 Cogmind --------- Core Integrity 0/1000 Matter 200/300 Energy 97/100 System Corruption 34% Temperature Cool (0) Movement Core (550) Ox10 Location -5/Hub_04(d) Parts ------- > --- POWER (1) -------- (None) > --- PROPULSION (4) --- (None) > --- UTILITY (9) ------ Advanced Heat Sink High-capacity Storage Unit Enhanced Optical Array Advanced Signal Interpreter Advanced Terrain Scan Processor Targeting Computer Experimental Targeting Computer Advanced Melee Analysis Suite > --- WEAPON (3) ------- (None) > --- INVENTORY (12) --- Quantum Reactor High-capacity Storage Unit KE Penetrator Improved Proton Missile Launcher Phasing Sabre Longsword +1 Peak State ------------ > --- POWER ------------ Particle Reactor > --- PROPULSION ------- Carbon-fiber Leg Carbon-fiber Leg Flexi-carbon Leg Flexi-carbon Leg > --- UTILITY ---------- Advanced Heat Sink High-capacity Storage Unit Enhanced Optical Array Advanced Signal Interpreter Advanced Terrain Scan Processor Targeting Computer Advanced Melee Analysis Suite Centrium Medium Armor Plating Centrium Medium Armor Plating > --- WEAPON ----------- Advanced Variable Charge Gun Railgun Railgun > --- INVENTORY -------- Particle Reactor Quantum Reactor Carbon-fiber Leg Carbon-fiber Leg Flexi-carbon Leg High-capacity Storage Unit Hardened Light Armor Plating AWS/Autocannon Phasing Sabre Longsword +1 [Rating: 94] Favorites ----------- Power Micro Fission Core Engine Reinforced Ion Engine Power Core Micro Fission Core Reactor Particle Reactor Propulsion Carbon-fiber Leg Treads Heavy Treads Leg Carbon-fiber Leg Wheel Compact Wheel Hover Unit Combat Airjet Utility Enhanced Optical Array Device Improved Heat Sink Storage High-capacity Storage Unit Processor Enhanced Optical Array Hackware Improved Hacking Suite Protection Hardened Light Armor Plating Weapon Light Assault Rifle Energy Gun Heavy Beamcaster Energy Cannon Improved EM Pulse Cannon Ballistic Gun Light Assault Rifle Ballistic Cannon Enhanced Gauss Cannon Launcher Heavy Shock Bomb Launcher Impact Weapon Powered Hammer Slashing Weapon Phasing Sabre Build | -11 -10 -9 -9 -9 -8 -8 -7 -6 -6 -6 -5 -5 -5 -5 -5 ------- Run | Scr Mat Mat Min Exi Min Mat Fac Fac Was Fac Fac Ext Cet Arc Hub Slots Evolved 10 | . . 2 . . . 2 2 2 . . 2 . . . . Power . | . . . . . . . . . . . . . . . . Propulsion 2 | . . . . . . . . . . . 2 . . . . Utility 7 | . . 2 . . . 1 2 2 . . . . . . . Weapon 1 | . . . . . . 1 . . . . . . . . . Parts Attached 236 | . 4 5 11 3 6 5 37 27 15 14 47 23 19 10 10 Power 15 | . . 1 1 . 1 . 1 2 2 . 4 1 . 1 1 Engine 6 | . . 1 1 . . . . 2 . . 2 . . . . Core 7 | . . . . . 1 . 1 . 2 . 2 1 . . . Reactor 2 | . . . . . . . . . . . . . . 1 1 Propulsion 55 | . . . 4 . 1 1 8 3 3 . 16 6 9 2 2 Treads 1 | . . . . . . . . . 1 . . . . . . Leg 45 | . . . 4 . 1 1 8 3 2 . 8 5 9 2 2 Wheel 1 | . . . . . . . . . . . 1 . . . . Hover 8 | . . . . . . . . . . . 7 1 . . . Flight . | . . . . . . . . . . . . . . . . Utility 81 | . 2 3 2 2 2 . 15 12 4 7 14 6 6 3 3 Device 38 | . 2 . 1 1 . . 9 6 2 2 9 2 3 1 . Storage 4 | . . 1 . . . . . 2 . 1 . . . . . Processor 10 | . . . . . 1 . 3 2 . 1 1 1 . . 1 Hackware 3 | . . . . . . . . 1 . . . . . 1 1 Protection 26 | . . 2 1 1 1 . 3 1 2 3 4 3 3 1 1 Artifact . | . . . . . . . . . . . . . . . . Weapon 85 | . 2 1 4 1 2 4 13 10 6 7 13 10 4 4 4 Energy Gun 20 | . . 1 3 . . . 3 2 2 1 3 . 3 1 1 Energy Cannon 9 | . . . . . . . 2 . . 1 1 4 . 1 . Ballistic Gun 25 | . 2 . 1 1 2 2 4 4 3 1 1 1 1 2 . Ballistic Cannon 10 | . . . . . . . . . . 1 7 1 . . 1 Launcher 11 | . . . . . . 1 2 2 . 1 1 3 . . 1 Special Weapon . | . . . . . . . . . . . . . . . . Impact Weapon 1 | . . . . . . . . 1 . . . . . . . Slashing Weapon 9 | . . . . . . 1 2 1 1 2 . 1 . . 1 Piercing Weapon . | . . . . . . . . . . . . . . . . Special Melee Weapon . | . . . . . . . . . . . . . . . . Unidentified Prototypes 6 | . . . . . . . . 1 . . 2 . 2 . 1 Parts Lost 56 | . . 2 3 . 2 . 2 5 6 . 15 1 4 2 14 Power 3 | . . 1 . . . . . . . . . . . . 2 Propulsion 16 | . . . . . 1 . . . 1 . 7 . 1 . 6 Utility 17 | . . . 1 . 1 . 1 3 3 . 4 1 1 . 2 Weapon 20 | . . 1 2 . . . 1 2 2 . 4 . 2 2 4 Highest Loss Streak 14 | . . 2 2 . 2 . 1 4 6 . 8 1 3 1 14 Average Slot Usage (%) 94 | . 97 99 97 100 99 81 97 98 72 84 90 94 97 98 92 Engine 3 | . 14 11 11 11 9 . . 3 . . . . . . . Core 3 | . . . . . 1 9 7 2 3 6 4 5 5 1 . Leg 13 | . 28 22 22 22 21 18 14 13 2 . 10 3 22 23 18 Hover 2 | . . . . . . . . . . . 4 14 . . . Device 15 | . 11 11 14 22 22 18 16 19 10 9 17 16 5 5 5 Storage 6 | . 14 11 11 11 11 9 7 6 . 5 5 5 5 5 5 Processor 18 | . . . . . 1 9 19 23 26 26 21 24 29 29 29 Protection 7 | . . 21 18 11 9 . 6 5 3 8 4 4 9 10 5 Energy Gun 3 | . 4 1 15 5 . . 1 1 8 9 3 . 5 5 1 Energy Cannon 1 | . . . . . . . 5 . . . . . . 1 . Ballistic Gun 7 | . 23 20 4 16 22 18 8 10 5 . . 1 5 7 8 Ballistic Cannon 2 | . . . . . . . . . . 2 4 8 3 . . Slashing Weapon 2 | . . . . . . . 4 3 . 5 5 . . . 2 Naked Turns . | . . . . . . . . . . . . . . . . Heaviest Build 116 | 10 11 26 35 30 31 20 42 50 77 110 75 74 71 85 116 Greatest Support 82 | 20 20 20 20 20 25 25 37 37 70 70 82 72 70 70 65 Greatest Overweight (x) 32 | . . 1 1 1 2 . 1 1 2 1 19 4 1 1 32 Average Overweight (x) . | . . . 1 1 . . . . . . . . . . 1 Largest Inventory Capacity 12 | 6 6 8 8 8 8 8 8 10 10 12 12 12 12 12 12 Average Capacity 9 | 6 6 7 8 8 8 8 8 9 4 10 12 12 12 12 12 Most Carried 12 | 5 6 8 8 8 8 8 8 10 10 12 12 12 12 12 12 Average Carried 9 | 3 5 7 7 7 7 7 7 9 4 9 11 11 11 11 10 Final Capacity 12 | 6 6 8 8 8 8 8 8 10 4 12 12 12 12 12 12 Final Carried 12 | 3 6 8 8 8 7 7 8 10 4 12 12 12 12 12 6 Class Distribution -------------------- 26% | Scavenger-Mutant 18% | Mutant 13% | Scavenger-Skirmisher 13% | Scavenger-Assassin 10% | Assassin 5% | Scavenger-Tank 3% | Commander-Skirmisher Dominant Class ---------------- Mutant | -10/Materials Mutant | -9/Materials Scavenger-Mutant | -9/Mines Scavenger-Mutant | -9/Exiles Scavenger-Skirmisher | -8/Mines Scavenger-Skirmisher | -8/Materials Mutant | -7/Factory Assassin | -6/Factory Scavenger-Gunner | -6/Waste Scavenger-Mutant | -6/Factory Scavenger-Assassin | -5/Factory Scavenger-Skirmisher | -5/Extension Scavenger-Tank | -5/Cetus Scavenger-Tank | -5/Archives Scavenger-Mutant | -5/Hub_04(d) Resources | -11 -10 -9 -9 -9 -8 -8 -7 -6 -6 -6 -5 -5 -5 -5 -5 ----------- Run | Scr Mat Mat Min Exi Min Mat Fac Fac Was Fac Fac Ext Cet Arc Hub Matter Collected 4309 | 200 35 94 246 . 86 . 728 252 280 145 658 720 409 382 74 Remotely . | . . . . . . . . . . . . . . . . Salvage Created 5376 | . 35 194 401 . 108 . 618 312 . 174 991 711 646 663 523 Parts 251 | . 6 13 20 . 9 . 39 15 . 7 35 23 34 27 23 Haulers Intercepted 2 | . . . . . . . . . . . . . . . 2 Recyclers Shooed 6 | . . . . . 1 . 3 2 . . . . . . . Parts Field Recycled . | . . . . . . . . . . . . . . . . Retrieved Matter . | . . . . . . . . . . . . . . . . Parts Self-Destructed . | . . . . . . . . . . . . . . . . Prevented . | . . . . . . . . . . . . . . . . Kills | -11 -10 -9 -9 -9 -8 -8 -7 -6 -6 -6 -5 -5 -5 -5 -5 ------- Run | Scr Mat Mat Min Exi Min Mat Fac Fac Was Fac Fac Ext Cet Arc Hub Combat Hostiles Destroyed 85 | . 3 3 9 . 5 . 11 7 . 3 12 12 13 3 4 Melee 9 | . . . . . . . 4 1 . . 4 . . . . Guns 35 | . 3 3 9 . 5 . 3 2 . . 2 . 4 2 2 Cannons 19 | . . . . . . . 2 . . 1 4 9 1 . 2 AOE 16 | . . . . . . . 2 4 . 2 1 1 6 . . Classes Destroyed 13 | . 1 2 3 . 1 . 3 . . . . 1 . 1 1 Worker 6 | . . 1 . . . . 1 . . . 1 . . . 3 Hauler 2 | . . . . . . . . . . . . . . . 2 Recycler 6 | . . . . . . . 2 1 . . 3 . . . . Operator 9 | . . . . . . . . . . . . . . 8 1 Watcher 4 | . . . . . . . 1 . . 1 1 . 1 . . Swarmer 17 | . 3 . . . 4 . . 4 . . 1 . 5 . . Grunt 30 | . . . 6 . . . 5 1 . 2 5 6 5 . . Brawler 2 | . . . 2 . . . . . . . . . . . . Duelist 2 | . . . 1 . . . . . . . 1 . . . . Sentry 13 | . . 3 . . . . 2 . . . 1 3 . 3 1 Hunter 3 | . . . . . 1 . . . . . 1 1 . . . Programmer 11 | . . . . . . . 4 2 . 1 3 . . . 1 Behemoth 1 | . . . . . . . . . . . . 1 . . . Cetus Guard 3 | . . . . . . . . . . . . . 3 . . Lightning 2 | . . . . . . . . . . . . . . . 2 Thug 2 | . . . . . . . . . . . . 2 . . . Savage 1 | . . . . . . . . . . . . . . 1 . Best Kill Streak 11 | . 3 1 2 . 4 . 4 7 . 2 5 2 11 7 6 Combat Bots Only 10 | . 3 1 2 . 4 . 4 6 . 2 4 2 10 1 2 Max Kills in Single Turn 5 | . 1 1 1 . 1 . 2 4 . 2 1 2 5 1 3 Gunslinging 1 | . . . . . . . . . . . . . . . 1 Exploded 5 | . . . . . . . 2 4 . 2 1 1 5 . . Melee 1 | . . . . . . . 1 1 . . 1 . . . . Uniques/NPCs Destroyed 1 | . . . . . . . . . . . . 1 . . . A7 (-5/Extension) Combat | -11 -10 -9 -9 -9 -8 -8 -7 -6 -6 -6 -5 -5 -5 -5 -5 -------- Run | Scr Mat Mat Min Exi Min Mat Fac Fac Was Fac Fac Ext Cet Arc Hub Damage Taken 11989 | . 124 323 576 . 339 49 917 868 155 638 1926 867 1413 748 3046 Core 1299 | . . 14 33 . 13 . 87 89 39 15 281 33 252 . 443 Absorbed by Shields 365 | . . . . . . . . . . . . 365 . . . Core Remaining (%) 92 | 100 100 . . . 85 100 87 . . 83 . . . . . Volleys Fired 323 | . 8 18 42 . 16 . 30 14 . 6 43 39 26 68 13 Largest 3 | . 2 2 2 . 2 . 3 2 . 3 2 3 3 3 3 Hottest 240 | . 70 40 130 . 40 . 130 103 . 170 157 178 240 240 164 Shots Fired 613 | . 16 35 67 . 32 . 44 20 . 13 66 83 57 127 53 Gun 421 | . 16 35 67 . 32 . 30 19 . 9 24 7 36 116 30 Cannon 170 | . . . . . . . 8 . . 3 38 73 16 11 21 Launcher 22 | . . . . . . . 6 1 . 1 4 3 5 . 2 Special . | . . . . . . . . . . . . . . . . Kinetic 392 | . 8 35 21 . 32 . 26 16 . 3 32 72 39 62 46 Thermal 162 | . 8 . 46 . . . 4 3 . 9 20 . 13 54 5 Explosive 7 | . . . . . . . 6 1 . . . . . . . Electromagnetic 52 | . . . . . . . 8 . . 1 14 11 5 11 2 Robot Hit Streak 26 | . 2 15 7 . 8 . 10 5 . 13 26 6 9 14 6 Robot Miss Streak 4 | . 4 1 3 . 2 . 2 4 . 4 4 3 2 3 2 Penetration Max 1 | . . . . . . . . . . . . 1 1 1 1 Secondary Targets 4 | . 1 . . . 1 . . 1 . . . . . . 1 Max Gunslinging Chain 1 | . 1 . . . 1 . . 1 . . . . . . 1 Autonomous 21 | . . . . . . . . . . . . . . . 21 Shots Hit Robots 440 | . 6 28 45 . 24 . 45 17 . 14 71 54 31 71 34 Core Hits 225 | . 3 10 17 . 13 . 27 15 . 9 35 21 23 30 22 Critical Hits 14 | . . . . . 1 . 1 1 . . . 3 2 3 3 Critical Kills 4 | . . . . . . . . . . . . 2 . 1 1 Critical Parts Destroyed 8 | . . . . . 1 . 1 1 . . . 1 2 1 1 Melee Attacks 94 | . . . . . . 2 22 16 . 4 39 8 . . 3 Impact 8 | . . . . . . . . 8 . . . . . . . Slashing 86 | . . . . . . 2 22 8 . 4 39 8 . . 3 Piercing . | . . . . . . . . . . . . . . . . Sneak Attacks 12 | . . . . . . . 4 1 . 2 3 2 . . . Combat Hostiles 1 | . . . . . . . . . . . . 1 . . . Follow-up Attacks . | . . . . . . . . . . . . . . . . Damage Inflicted 16327 | . 59 192 574 . 175 . 1997 1136 . 1001 2488 2371 1697 2147 2490 Guns 5879 | . 59 192 574 . 175 . 541 337 . 213 446 160 633 1916 633 Cannons 4435 | . . . . . . . 129 . . 67 729 1835 350 231 1094 Explosions 3157 | . . . . . . . 424 604 . 463 152 81 714 . 719 Melee 2844 | . . . . . . . 903 195 . 246 1161 295 . . 44 Ramming 12 | . . . . . . . . . . 12 . . . . . Kinetic 6800 | . 8 192 105 . 175 . 499 316 . 67 487 1783 706 873 1589 Thermal 3261 | . 51 . 469 . . . 42 21 . 619 529 . 349 1043 138 Explosive 1013 | . . . . . . . 424 589 . . . . . . . Electromagnetic 2397 | . . . . . . . 129 15 . 57 311 293 642 231 719 Impact . | . . . . . . . . . . . . . . . . Slashing 2844 | . . . . . . . 903 195 . 246 1161 295 . . 44 Piercing . | . . . . . . . . . . . . . . . . Highest Corruption 33 | . 5 . 4 4 4 . 5 3 3 3 2 2 3 3 33 Average Corruption 3 | . 4 . 4 4 4 . 4 2 3 3 2 2 2 3 9 Corruption Purged 1 | . . . . . . . 1 . . . . . . . . Effects 172 | . 1 . 15 9 18 . 38 15 6 18 6 16 8 12 10 Message Errors 38 | . 1 . 3 1 6 . 7 4 1 5 2 2 2 1 3 Matter Fused 31 | . . . 5 2 5 . 11 4 . 3 . . . . 1 Heat Flow Errors 29 | . . . 1 2 5 . 3 4 1 5 2 4 1 1 . Energy Discharges 28 | . . . 2 3 . . 5 3 3 2 . 2 2 3 3 Data Loss (minor) 23 | . . . 1 1 . . 4 . 1 3 2 4 2 3 2 Data Loss (major) 5 | . . . . . . . 5 . . . . . . . . Targeting Errors 17 | . . . 3 . 2 . 3 . . . . 4 1 4 . Weapon Failures 1 | . . . . . . . . . . . . . . . 1 Overload Shots 3 | . . . . . . . . . . . . . 2 1 . Overflow Damage 706 | . . . . . . . 264 67 . 159 45 107 . . 64 Projectiles 71 | . . . . . . . 22 . . . 18 . . . 31 Explosions 200 | . . . . . . . 19 67 . 90 . . . . 24 Melee 435 | . . . . . . . 223 . . 69 27 107 . . 9 Knockbacks 33 | . . . . . . . . . . 1 8 11 . . 13 Impact . | . . . . . . . . . . . . . . . . Kinetic 31 | . . . . . . . . . . 1 8 9 . . 13 Secondary 2 | . . . . . . . . . . . . 2 . . . Self-Inflicted Damage 202 | . . . . . . . . 84 . . . . 12 . 106 Shots 5 | . . . . . . . . 3 . . . . 1 . 1 Rammed 2 | . . . . . . . . . . 2 . . . . . Targets Rammed 2 | . . . . . . . . . . 2 . . . . . Kicked . | . . . . . . . . . . . . . . . . Crushed . | . . . . . . . . . . . . . . . . Highest Temperature 393 | . 70 124 393 273 255 . 246 256 250 305 138 207 365 296 90 Average Temperature 100 | . 33 47 131 111 95 . 80 79 132 112 70 64 157 92 39 Received Heat Transfer 1663 | . . 108 102 . . 27 198 198 . 189 267 118 312 81 63 Effects 7 | . . . 6 . . . . . . . . . . 1 . Shutdowns 1 | . . . 1 . . . . . . . . . . . . Energy Bleed 1 | . . . . . . . . . . . . . . 1 . Interference 3 | . . . 3 . . . . . . . . . . . . Matter Decay 1 | . . . 1 . . . . . . . . . . . . Damage (minor) 1 | . . . 1 . . . . . . . . . . . . Siege Activations . | . . . . . . . . . . . . . . . . Robots Corrupted 5 | . . . . . . . . . . . 1 1 2 . 1 Combat Hostiles 4 | . . . . . . . . . . . 1 1 2 . . Parts Fried 9 | . . . . . . . . . . . 1 2 . . 6 Impact Corruptions . | . . . . . . . . . . . . . . . . Robots Melted 1 | . . . . . . . . . . . . . . 1 . Combat Hostiles 1 | . . . . . . . . . . . . . . 1 . Parts Melted 8 | . . . 1 . . . . . . 1 . . 1 5 . Heat Transferred 4537 | . 148 . 1147 . . . 74 50 . 533 585 . 470 1382 148 Parts Sabotaged . | . . . . . . . . . . . . . . . . Parts Stolen . | . . . . . . . . . . . . . . . . Parts Stripped . | . . . . . . . . . . . . . . . . Power Chain Reactions 4 | . . . . . . . . . . . 2 . 2 . . Missiles Intercepted . | . . . . . . . . . . . . . . . . Alert | -11 -10 -9 -9 -9 -8 -8 -7 -6 -6 -6 -5 -5 -5 -5 -5 ------- Run | Scr Mat Mat Min Exi Min Mat Fac Fac Was Fac Fac Ext Cet Arc Hub Peak Influence 1031 | . 99 80 170 . 95 11 143 236 18 336 317 546 1031 505 793 Initial 338 | . . 41 . . . 11 . 28 . . 107 6 272 338 116 Average 157 | . 69 29 73 . 17 8 63 49 . 129 101 382 699 396 310 Maximum Alert Level 3 | . . . . . . . . 1 . 1 1 2 3 2 3 Low Security (%) 73 | 100 100 100 100 . 100 100 100 94 100 62 88 15 . . 61 Level 1 10 | . . . . . . . . 5 . 37 11 23 8 43 . Level 2 12 | . . . . . . . . . . . . 61 50 56 14 Level 3 2 | . . . . . . . . . . . . . 40 . 24 Level 4 . | . . . . . . . . . . . . . . . . Level 5 . | . . . . . . . . . . . . . . . . High Security . | . . . . . . . . . . . . . . . . Max Security . | . . . . . . . . . . . . . . . . Squads Dispatched 24 | . 1 . . . . 1 4 3 . 5 1 5 2 . 2 Investigation 6 | . . . . . . . . . . 2 . 2 2 . . Extermination 7 | . . . . . . . 3 1 . 2 1 . . . . Reinforcement 10 | . 1 . . . . 1 1 2 . 1 . 3 . . 1 Assault . | . . . . . . . . . . . . . . . . Garrison 1 | . . . . . . . . . . . . . . . 1 Intercept . | . . . . . . . . . . . . . . . . Construction Impeded 1 | . . . . . . . . . . 1 . . . . . Haulers Reinforced . | . . . . . . . . . . . . . . . . Stealth | -11 -10 -9 -9 -9 -8 -8 -7 -6 -6 -6 -5 -5 -5 -5 -5 --------- Run | Scr Mat Mat Min Exi Min Mat Fac Fac Was Fac Fac Ext Cet Arc Hub Distress Signals 7 | . . 2 . . . . 1 . . . 1 3 . . . Communications Jammed . | . . . . . . . . . . . . . . . . Distress Signals . | . . . . . . . . . . . . . . . . Times Spotted 201 | . 4 6 9 . 5 3 16 11 5 14 21 29 29 30 19 Peak Tracking Total 12 | . 3 3 3 . 3 3 5 6 3 4 6 6 12 2 11 Tactical Retreats 9 | . . . . . . . 2 1 . 2 1 2 1 . . Traps | -11 -10 -9 -9 -9 -8 -8 -7 -6 -6 -6 -5 -5 -5 -5 -5 ------- Run | Scr Mat Mat Min Exi Min Mat Fac Fac Was Fac Fac Ext Cet Arc Hub Traps Triggered 20 | . 3 . . . . 1 . 1 . 1 6 3 . . 5 Indirectly 3 | . . . . . . . . . . . . . . . 3 Trap Hack Attempts . | . . . . . . . . . . . . . . . . Triggered . | . . . . . . . . . . . . . . . . Disarmed . | . . . . . . . . . . . . . . . . Reprogrammed . | . . . . . . . . . . . . . . . . Reused . | . . . . . . . . . . . . . . . . Traps Extracted . | . . . . . . . . . . . . . . . . Installed . | . . . . . . . . . . . . . . . . Triggered . | . . . . . . . . . . . . . . . . Exploded 1 | . . . . 1 . . . . . . . . . . . Machines | -11 -10 -9 -9 -9 -8 -8 -7 -6 -6 -6 -5 -5 -5 -5 -5 ---------- Run | Scr Mat Mat Min Exi Min Mat Fac Fac Was Fac Fac Ext Cet Arc Hub Machines Disabled 43 | . . . 2 . . . . 2 . 2 2 5 3 7 20 Max in Single Turn 10 | . . . 1 . . . . 1 . 2 2 1 1 1 10 Garrison Access 1 | . . . . . . . . . . . 1 . . . . Network Hub 2 | . . . . . . . . . . . . . . . 2 Machines Sabotaged . | . . . . . . . . . . . . . . . . Garrisons Compromised . | . . . . . . . . . . . . . . . . Overloaded Fab Kills . | . . . . . . . . . . . . . . . . Fab Network Shutdowns . | . . . . . . . . . . . . . . . . Hacking | -11 -10 -9 -9 -9 -8 -8 -7 -6 -6 -6 -5 -5 -5 -5 -5 --------- Run | Scr Mat Mat Min Exi Min Mat Fac Fac Was Fac Fac Ext Cet Arc Hub Machines Accessed 42 | . 2 3 . 2 1 1 5 5 . 5 4 9 2 1 2 Terminals 35 | . 2 3 . . 1 1 3 5 . 5 2 9 2 . 2 Fabricators 2 | . . . . . . . 1 . . . 1 . . . . Repair Stations . | . . . . . . . . . . . . . . . . Recycling Units . | . . . . . . . . . . . . . . . . Scanalyzers 1 | . . . . . . . 1 . . . . . . . . Garrison Access 1 | . . . . . . . . . . . 1 . . . . Total Hacks 122 | . 7 8 . 5 6 5 12 10 . 12 6 18 4 25 4 Successful 70 | . 6 6 . 5 2 2 6 3 . 3 3 8 . 25 1 Failed 52 | . 1 2 . . 4 3 6 7 . 9 3 10 4 . 3 Catastrophic 10 | . . . . . . . 2 1 . 1 1 3 2 . . Database Lockouts . | . . . . . . . . . . . . . . . . Manual 45 | . 5 7 . 1 . 5 6 6 . 8 4 . 1 1 1 Terminals 83 | . 7 8 . . 6 5 6 10 . 12 3 18 4 . 4 Fabricators 3 | . . . . . . . 1 . . . 2 . . . . Repair Stations . | . . . . . . . . . . . . . . . . Recycling Units . | . . . . . . . . . . . . . . . . Scanalyzers 5 | . . . . . . . 5 . . . . . . . . Garrison Access 1 | . . . . . . . . . . . 1 . . . . Terminal Hacks 51 | . 3 4 . 5 2 1 1 . . 1 . 8 . 25 1 Record 30 | . . . . 4 . . . . . 1 . . . 25 . Robot Analysis 1 | . . . . . . . . . . . . 1 . . . Prototype ID Bank 1 | . . 1 . . . . . . . . . . . . . Open Door 7 | . . . . . . . . . . . . 7 . . . Branch Access Points 1 | . . 1 . . . . . . . . . . . . . Emergency Access Points 1 | . 1 . . . . . . . . . . . . . . Scanalyzer Index 1 | . 1 . . . . . . . . . . . . . . Unreport Threat 5 | . . 2 . . . 1 1 . . . . . . . 1 Investigation Status 1 | . . . . . 1 . . . . . . . . . . Recall Investigation 1 | . . . . . 1 . . . . . . . . . . Recall Reinforcements 1 | . 1 . . . . . . . . . . . . . . EX-Prototype ID Bank 1 | . . . . 1 . . . . . . . . . . . Fabricator Hacks 2 | . . . . . . . 1 . . . 1 . . . . Network Status 1 | . . . . . . . . . . . 1 . . . . Build 1 | . . . . . . . 1 . . . . . . . . Repair Station Hacks . | . . . . . . . . . . . . . . . . Recycling Unit Hacks . | . . . . . . . . . . . . . . . . Scanalyzer 2 | . . . . . . . 2 . . . . . . . . Insert Component 2 | . . . . . . . 2 . . . . . . . . Garrison Access Hacks 1 | . . . . . . . . . . . 1 . . . . Seal Access 1 | . . . . . . . . . . . 1 . . . . Unauthorized Hacks 14 | . 3 2 . . . 1 2 3 . 2 1 . . . . Terminals 14 | . 3 2 . . . 1 2 3 . 2 1 . . . . Assimilate 2 | . . . . . . . . 2 . . . . . . . Botnet 9 | . 2 1 . . . 1 2 1 . 1 1 . . . . Operators 3 | . 1 1 . . . . . . . 1 . . . . . Fabricators . | . . . . . . . . . . . . . . . . Repair Stations . | . . . . . . . . . . . . . . . . Recycling Units . | . . . . . . . . . . . . . . . . Scanalyzers . | . . . . . . . . . . . . . . . . Garrison Access . | . . . . . . . . . . . . . . . . Data Cores Recovered . | . . . . . . . . . . . . . . . . Used . | . . . . . . . . . . . . . . . . Hacking Detections 37 | . 2 3 . . 1 1 5 5 . 5 4 6 3 . 2 Full Trace Events 6 | . . . . . . . . . . 2 . 2 2 . . Feedback Events . | . . . . . . . . . . . . . . . . Feedback Blocked . | . . . . . . . . . . . . . . . . Robot Schematics Acquired . | . . . . . . . . . . . . . . . . Robots Built 1 | . . . . . . . 1 . . . . . . . . Matter 153 | . . . . . . . 153 . . . . . . . . Time 40 | . . . . . . . 40 . . . . . . . . Total Robot Build Rating 1 | . . . . . . . 1 . . . . . . . . Part Schematics Acquired . | . . . . . . . . . . . . . . . . Parts Built . | . . . . . . . . . . . . . . . . Matter . | . . . . . . . . . . . . . . . . Time . | . . . . . . . . . . . . . . . . Total Part Build Rating . | . . . . . . . . . . . . . . . . Parts Repaired . | . . . . . . . . . . . . . . . . Time . | . . . . . . . . . . . . . . . . Parts Recycled . | . . . . . . . . . . . . . . . . Recycled Matter . | . . . . . . . . . . . . . . . . Retrieved Matter . | . . . . . . . . . . . . . . . . Retrieved Components . | . . . . . . . . . . . . . . . . Parts Scanalyzed 1 | . . . . . . . 1 . . . . . . . . Part Schematics Acquired . | . . . . . . . . . . . . . . . . Parts Damaged . | . . . . . . . . . . . . . . . . Bothacking | -11 -10 -9 -9 -9 -8 -8 -7 -6 -6 -6 -5 -5 -5 -5 -5 ------------ Run | Scr Mat Mat Min Exi Min Mat Fac Fac Was Fac Fac Ext Cet Arc Hub Used RIF Installer . | . . . . . . . . . . . . . . . . Robots Hacked . | . . . . . . . . . . . . . . . . Non-combat . | . . . . . . . . . . . . . . . . Combat . | . . . . . . . . . . . . . . . . Robot Hacks Applied . | . . . . . . . . . . . . . . . . Relay Couplers Released . | . . . . . . . . . . . . . . . . Robots Rewired 17 | . . . . . . . . . . . . 17 . . . Allies Hacked 2 | . . . . . . . . 1 . . . 1 . . . Hacks Repelled . | . . . . . . . . . . . . . . . . Allies | -11 -10 -9 -9 -9 -8 -8 -7 -6 -6 -6 -5 -5 -5 -5 -5 -------- Run | Scr Mat Mat Min Exi Min Mat Fac Fac Was Fac Fac Ext Cet Arc Hub Total Allies 47 | . . . . . . . 1 1 19 . . 26 . . . Largest Group 19 | . . . . . . . 1 1 19 12 . 14 9 3 . Highest-Rated Group 714 | . . . . . . . 10 26 714 491 . 469 241 82 . Highest-Rated Ally 156 | . . . . . . . 10 26 50 46 . 156 31 31 . Total Orders 6 | . . . . . . . 6 . . . . . . . . STAY 2 | . . . . . . . 2 . . . . . . . . FOLLOW 2 | . . . . . . . 2 . . . . . . . . PICKUP 1 | . . . . . . . 1 . . . . . . . . COLLECT 1 | . . . . . . . 1 . . . . . . . . Ally Attacks 462 | . . . . . . . . . 134 56 . 145 107 20 . Total Damage 11384 | . . . . . . . . . 3540 1637 . 3910 2008 289 . Kills 51 | . . . . . . . . . 8 7 . 22 13 1 . Allies Corrupted 1 | . . . . . . . . . . 1 . . . . . Allies Melted . | . . . . . . . . . . . . . . . . Intel | -11 -10 -9 -9 -9 -8 -8 -7 -6 -6 -6 -5 -5 -5 -5 -5 ------- Run | Scr Mat Mat Min Exi Min Mat Fac Fac Was Fac Fac Ext Cet Arc Hub Robot Analysis Total 1 | . . . . . . . . . . . . 1 . . . Derelict Logs Recovered 1 | . . . 1 . . . . . . . . . . . . Drone Launches . | . . . . . . . . . . . . . . . . Drone Recoveries . | . . . . . . . . . . . . . . . . Exploration | -11 -10 -9 -9 -9 -8 -8 -7 -6 -6 -6 -5 -5 -5 -5 -5 ------------- Run | Scr Mat Mat Min Exi Min Mat Fac Fac Was Fac Fac Ext Cet Arc Hub Turns Passed 11024 | 3 299 466 723 345 786 105 1661 1260 317 882 1612 1263 519 543 240 Spaces Moved 6264 | 1 216 285 392 224 401 79 899 760 227 439 890 773 326 245 107 Core 93 | . . . . . . . . . 81 . 11 . . . 1 Treads 643 | . . . . . . . . . 104 439 100 . . . . Legs 4615 | 1 216 285 392 224 401 79 899 760 42 . 492 147 326 245 106 Wheels 1 | . . . . . . . . . . . 1 . . . . Hover 912 | . . . . . . . . . . . 286 626 . . . Flight . | . . . . . . . . . . . . . . . . Fastest Speed 50 | 120 120 120 150 150 120 120 120 130 50 160 63 65 120 120 150 Average Speed 139 | 120 120 139 150 150 143 120 146 145 125 179 136 105 125 140 174 Slowest Speed 1650 | 120 120 150 150 150 180 120 160 160 180 180 1000 240 150 150 1650 Overloaded Moves . | . . . . . . . . . . . . . . . . Propulsion Burnouts . | . . . . . . . . . . . . . . . . Robots Hopped . | . . . . . . . . . . . . . . . . Cave-ins Triggered . | . . . . . . . . . . . . . . . . Exploration Rate (%) 47 | 2 39 25 76 61 82 14 21 18 91 14 26 78 90 93 26 Regions Visited 15 Branch Regions 7 Pre-discovered Areas 1 | . . . . 1 . . . . . . . . . . . Known Exits Taken 8 | . . 1 . . . 1 1 . . 1 1 1 1 1 . Unknown Exits Taken 5 | 1 1 . 1 1 1 . . . . . . . . . . Scrap Searched 3 | . . . 2 . 1 . . . . . . . . . . Spaces Dug 30 | . . . . . . 2 3 9 . 2 11 2 . . 1 Terrain Destroyed 518 | . . . . . . 2 41 28 . 22 25 22 9 23 346 Melee 29 | . . . . . . 2 3 9 . 2 10 2 . . 1 Projectile 62 | . . . . . . . . . . . 11 20 3 23 5 AOE 427 | . . . . . . . 38 19 . 20 4 . 6 . 340 Terrain Rammed . | . . . . . . . . . . . . . . . . Walls Destroyed . | . . . . . . . . . . . . . . . . Machines Disabled . | . . . . . . . . . . . . . . . . Actions | -11 -10 -9 -9 -9 -8 -8 -7 -6 -6 -6 -5 -5 -5 -5 -5 --------- Run | Scr Mat Mat Min Exi Min Mat Fac Fac Was Fac Fac Ext Cet Arc Hub Total 7922 | 5 242 324 463 235 585 85 1176 879 254 511 1157 1134 395 339 138 Wait 507 | . 8 11 10 . 151 . 144 29 7 23 91 27 3 3 . Move 6250 | . 215 284 391 223 400 78 898 760 226 438 889 772 325 244 107 Hop . | . . . . . . . . . . . . . . . . Pick Up 72 | 1 3 4 3 3 . . 6 9 3 13 12 5 4 4 2 Fast Attach 109 | . 2 3 . . 3 2 13 15 11 7 32 8 7 5 1 Attach 28 | . . 1 3 . 1 1 . 3 2 1 7 . 1 2 6 Detach 12 | . 1 . . . . . . 3 . . 5 . . 1 2 Swap 99 | . 2 1 8 3 2 2 24 9 2 6 8 15 11 3 3 Drop 159 | 4 3 2 6 6 4 . 33 21 3 11 20 18 18 9 1 Fire 323 | . 8 18 42 . 16 . 30 14 . 6 43 39 26 68 13 Melee 94 | . . . . . . 2 22 16 . 4 39 8 . . 3 Ram . | . . . . . . . . . . . . . . . . Kick . | . . . . . . . . . . . . . . . . Crush 2 | . . . . . . . . . . 2 . . . . . Escape Stasis 40 | . . . . . . . . . . . 11 29 . . . Rewire 227 | . . . . . 8 . 6 . . . . 213 . . . Trap . | . . . . . . . . . . . . . . . . Miscellaneous . | . . . . . . . . . . . . . . . . Route ------- -11/Scrapyard -10/Materials -9/Materials (discovered 3 exits: *Min x2 / Sto) -9/Mines (discovered 2 exits: *Mat / *Exi) -9/Exiles -8/Mines -8/Materials (discovered 2 exits: *Fac x2) -7/Factory -6/Factory -6/Waste -6/Factory -5/Factory (discovered 2 exits: *Upp / *Ext) -5/Extension (discovered 2 exits: *Fac / *Cet) -5/Cetus (discovered 2 exits: *Fac / *Arc) -5/Archives (discovered 3 exits: *Fac / *Hub x2) -5/Hub_04(d) History --------- Turn | Location | Event 4 | -11/Scrapyard | Discovered new exit (range 0) 4 | -11/Scrapyard | Entered Materials 226 | -10/Materials | Discovered new exit (range 13) 303 | -10/Materials | Build established: Mutant 303 | -10/Materials | Entered another Materials area 303 | -9/Materials | Evolved 2 slots: Utility x2 386 | -9/Materials | Discovered new exit (range 7) 672 | -9/Materials | Identified exit to Mines 672 | -9/Materials | Identified exit to Storage 769 | -9/Materials | Entered Mines 780 | -9/Mines | Met a Derelict bent on vengeance 1010 | -9/Mines | Discovered new exit (range 13) 1146 | -9/Mines | Learned location of 1 exit from Materials 1252 | -9/Mines | Build established: Scavenger-Mutant 1484 | -9/Mines | Deemed a non-threat by the Exiles lab entrance 1486 | -9/Mines | Discovered new exit (range 5) 1492 | -9/Mines | Entered Exiles 1530 | -9/Exiles | Met 8R-AWN 1555 | -9/Exiles | Met EX-HEX 1594 | -9/Exiles | Met EX-BIN 1612 | -9/Exiles | Aligned with FarCom system 1614 | -9/Exiles | Given EX-Vault access code 1650 | -9/Exiles | Opened EX-Vault 1662 | -9/Exiles | Found Longsword +1 1669 | -9/Exiles | Found Firepult 1684 | -9/Exiles | Found AWS/Autocannon 1717 | -9/Exiles | Warned to stay clear of 0b10 Research branches 1721 | -9/Exiles | Exiles lab attacked by MAIN.C 1780 | -9/Exiles | Learned location of Zion (-6) 1825 | -9/Exiles | Discovered new exit (range 10) 1837 | -9/Exiles | Stole three prototypes: Firepult, AWS/Autocannon, Longsword +1 1837 | -9/Exiles | Entered Mines 2167 | -8/Mines | Build established: Scavenger-Skirmisher 2540 | -8/Mines | Discovered new exit (range 5) 2623 | -8/Mines | Entered Materials 2623 | -8/Materials | Evolved 2 slots: Utility x1, Weapon x1 2624 | -8/Materials | Identified exit to Factory 2697 | -8/Materials | Discovered exit to Factory (range 15) 2728 | -8/Materials | Entered Factory 2728 | -7/Factory | Evolved 2 slots: Utility x2 2730 | -7/Factory | FarCom data flow suspended 3377 | -7/Factory | Fabricated A-02 Transporter? 3773 | -7/Factory | Build established: Mutant 3773 | -7/Factory | P-60 Hacker assimilated allied Transporter 4a 4237 | -7/Factory | Discovered new exit (range 15) 4254 | -7/Factory | Identified exit to Factory 4389 | -7/Factory | Entered another Factory area 4389 | -6/Factory | Evolved 2 slots: Utility x2 4486 | -6/Factory | Build established: Scavenger-Mutant 4738 | -6/Factory | Lost 4 parts (2u2w) 5031 | -6/Factory | Build established: Assassin 5386 | -6/Factory | Discovered new exit (range 15) 5444 | -6/Factory | Identified exit to Lower Caves 5649 | -6/Factory | Sucked down chute 5649 | -6/Factory | Entered Waste 5663 | -6/Waste | Spotted C-40 Crusher 5676 | -6/Waste | Spotted C-40 Crusher 5678 | -6/Waste | Spotted C-40 Crusher 5685 | -6/Waste | Crushed by Compactor (1 part destroyed, 2 dropped) 5688 | -6/Waste | Crushed by Compactor (1 part destroyed, 2 dropped) 5692 | -6/Waste | Crushed by Compactor (1 part destroyed, 2 dropped) 5695 | -6/Waste | Crushed by Compactor (1 part destroyed, 2 dropped) 5703 | -6/Waste | Warlord forces began an assault 5726 | -6/Waste | Lost 6 parts (1n3u2w) 5729 | -6/Waste | Spotted C-40 Crusher 5732 | -6/Waste | Spotted C-40 Crusher 5733 | -6/Waste | Allies destroyed C-40 Crusher 5745 | -6/Waste | Allies destroyed C-40 Crusher 5757 | -6/Waste | Found Damper Plating 5763 | -6/Waste | Spotted C-40 Crusher 5778 | -6/Waste | Allies destroyed C-40 Crusher 5815 | -6/Waste | Found Damper Plating 5934 | -6/Waste | Discovered new exit (range 12) 5957 | -6/Waste | Identified exit to Factory 5966 | -6/Waste | Entered Factory 5966 | -6/Factory | Accompanied by 12 allies 5977 | -6/Factory | Spotted B-75 Beast 6001 | -6/Factory | Allies destroyed B-75 Beast 6310 | -6/Factory | Build established: Scavenger-Mutant 6415 | -6/Factory | Discovered new exit (range 13) 6501 | -6/Factory | Identified exit to Factory 6848 | -6/Factory | Entered another Factory area 6848 | -5/Factory | Evolved 2 slots: Propulsion x2 6864 | -5/Factory | Build established: Scavenger-Assassin 7279 | -5/Factory | Discovered new exit (range 14) 7465 | -5/Factory | Identified exit to Upper Caves 7775 | -5/Factory | Lost 4 parts (2n2u) 8071 | -5/Factory | Lost 8 parts (4n2u2w) 8442 | -5/Factory | Discovered new exit (range 12) 8459 | -5/Factory | Identified exit to Extension 8460 | -5/Factory | Entered Extension 8468 | -5/Extension | Disrupted transfer network 8512 | -5/Extension | Rescued a captive Derelict 8513 | -5/Extension | Rescued a captive Derelict 8550 | -5/Extension | Rescued a captive Derelict 8582 | -5/Extension | Rescued A7 8691 | -5/Extension | Rescued a captive Derelict 8720 | -5/Extension | Spotted B-75 Beast 8789 | -5/Extension | Spotted B-75 Beast 8802 | -5/Extension | Allies destroyed B-75 Beast 8822 | -5/Extension | Destroyed B-75 Beast 9102 | -5/Extension | Rescued a captive Derelict 9349 | -5/Extension | Rescued a captive Derelict 9366 | -5/Extension | Rescued a captive Derelict 9475 | -5/Extension | Allies destroyed A7 9479 | -5/Extension | Extracted ID and sensor layout for unrecognized location from A7's data core 9505 | -5/Extension | Rescued a captive Derelict 9677 | -5/Extension | Discovered new exit (range 13) 9680 | -5/Extension | Discovered new exit (range 6) 9710 | -5/Extension | Identified exit to Cetus 9712 | -5/Extension | Identified exit to Factory 9723 | -5/Extension | Entered Cetus 9723 | -5/Cetus | Accompanied by 9 allies 9737 | -5/Cetus | Spotted Cetus Guard 9737 | -5/Cetus | Spotted Cetus Guard 9737 | -5/Cetus | Spotted Cetus Guard 9737 | -5/Cetus | Spotted Cetus Guard 9759 | -5/Cetus | Destroyed Cetus Guard 9760 | -5/Cetus | Destroyed Cetus Guard 9761 | -5/Cetus | Destroyed Cetus Guard 9767 | -5/Cetus | Allies destroyed Cetus Guard 9772 | -5/Cetus | Core integrity fell below 50% 9798 | -5/Cetus | Destroyed 10 combat bots 9805 | -5/Cetus | Lost 3 parts (1n1u1w) 9857 | -5/Cetus | Discovered exit to Factory (range 21) 10027 | -5/Cetus | P-70 Sage assimilated allied B6-WEY(b) 10175 | -5/Cetus | Discovered new exit (range 21) 10199 | -5/Cetus | Identified exit to Archives 10242 | -5/Cetus | Entered Archives 10242 | -5/Archives | Accompanied by 3 allies 10366 | -5/Archives | Discovered new exit (range 22) 10390 | -5/Archives | Identified exit to Hub_04(d) 10405 | -5/Archives | Discovered exit to Hub_04(d) (range 22) 10411 | -5/Archives | Discovered exit to Factory (range 22) 10477 | -5/Archives | Unable to access archive contents 10492 | -5/Archives | Unable to access archive contents 10510 | -5/Archives | Unable to access archive contents 10530 | -5/Archives | Unable to access archive contents 10785 | -5/Archives | Entered Hub_04(d) 10932 | -5/Hub_04(d) | Network Hub disabled 10935 | -5/Hub_04(d) | Network Hub disabled 10935 | -5/Hub_04(d) | Garrison activated, responded to threat 10953 | -5/Hub_04(d) | System corruption reached 10% 10957 | -5/Hub_04(d) | Spotted Lightning 10958 | -5/Hub_04(d) | Spotted Lightning 10964 | -5/Hub_04(d) | Spotted Lightning 10965 | -5/Hub_04(d) | Spotted Lightning 10968 | -5/Hub_04(d) | Spotted Lightning 10970 | -5/Hub_04(d) | Spotted Lightning 10994 | -5/Hub_04(d) | Destroyed Lightning 10995 | -5/Hub_04(d) | Core integrity fell below 20% 11000 | -5/Hub_04(d) | Destroyed Lightning 11016 | -5/Hub_04(d) | System corruption reached 30% 11018 | -5/Hub_04(d) | Found Prototype Processor 11018 | -5/Hub_04(d) | Identified Exp. Targeting Computer 11025 | -5/Hub_04(d) | Destroyed by Lightning with EMDS Last Messages --------------- 11018_ Lightning knocked back. 11019_ The unstable cave ceiling collapses. 11019_ Penetrated by EMDS Slug. 11020_ Slug penetrates Wall. 11020_ Penetrated by Slug. 11020_ Lightning knocked back. 11020_ EMDS Slug penetrates Wall. 11020_ Penetrated by EMDS Slug. 11022_ Destroyed Prototype Device. 11022_ Lightning knocked back. 11023_ W HD5&TAUG029U%TWMYEJNO>H 11023_ Slug penetrates Wall. 11023_ Penetrated by Slug. 11023_ Critical hit. 11023_ AWS/Autocannon destroyed. 11023_ Penetrated by Slug. 11023_ Penetrated by EMDS Slug. 11023_ Hrd. Light Armor Plating destroyed. 11025_ EMDS Slug penetrates Wall. 11025_ Penetrated by EMDS Slug. Map ----- +----------------------------------------------------+ | ??????????????????? #??# ## """" #??? | | ???????????????????? ???# ## """" #??? | | ???????????????????? ???# ## #??? | | ????????????????????? ????# ######+######## | | ????????????????????? ?????# ##### | | ?????????????????????? ??????# | | ?????????????????????? ???????# ##### | | ????????????????????###+##??????# #???#####+##### | | ????????????????????# ! ######## #?????# #? | | ????????????????????# ####### #? | | ????????????????????# "" + """" #? | | ????????????????????# ################# """" #? | | ????????###?#???????## ########## #####?# """" #? | | ?????#### ## ###????# # [ ?# """" #? | | ????## ##### + """ "" "??# #? | | ????# #^ # "T??# """" #? | | ????# #^ # !! # """" #? | | ????# # # !! # """" #? | | ????# # h# | ! "" """ ??# """" #? | | ????# #h ; ?# ? ?? | | ### # ; ; "" ????? | | ; ! ;hh ?? ####????? | | ; =% ;;h##;#####+#######??????? | | * % #??????? | | #;;;;;;;; ##?????????? | | = ;; @# ] #?????????? | | ;; %; """" ?????????? | | * ;; !# """" ??????????? | | *= ;; #ih """"???????????? | | ! ;;;;;;;; #?= """???????????? | | ; #?? ! ???????????? | | ; ########???"""="""" ??????????? | | ## # #??????????"""%"""" #?????????? | | ??# ##### ##?????????????""*""""???????????? | | ???##????##????????????????"="""????????????? | | ????????????????????????????? ????????????? | | ? ???????????????????????????????? ?????????????? | | ?????????????????????????????????????????????????? | | ?????????????????????????????????????????????????? | | ?????????????????????????????????????????????????? | | ?????????????????????????????????????????????????? | | ?????????????????????????????????????????????????? | | ?????????????????????????????????????????????????? | | ?????????????????????????????????????????????????? | | ?????????????????????????????????????????????????? | | ?????????????????????????????????????????????????? | | ?????????????????????????????????????????????????? | | ?????????????????????????????????????????????????? | | ?????????????????????????????????????????????????? | | ?????????????????????????????????????????????????? | +----------------------------------------------------+ Best States ------------- Heat Dissipation 99 Energy Generation 23 Energy Capacity 340 Matter Stores 300 Matter Capacity 300 Sight Range 22 Robot Scan Range 20 Terrain Scan Range 16 Terrain Scan Density 210 Jamming Range 12 EM Shielding 2 Armor Coverage 1200 Resistance: EM 90 Utility Shielding 66 Melee Speed Boost 20 Evasion (%) 52 Targeting Accuracy 17 Melee Accuracy 8 Recoil Reduction 2 Particle Charging 20 Offensive Hacking 12 Defensive Hacking 12 Item Schematics ----------------- None Robot Schematics ------------------ None Fabricated ------------ A-02 Transporter | x1 | -7/Factory | Preloaded Alien Tech Used ----------------- None Achievements -------------- None Challenges ------------ None Game ------ Seed ReflectiveSpreadGravjet Manual? 0 Play Time 01:39:08 Cumulative 310.5 hours Start 2021.04.05 @ 20:00:53 End 2021.04.05 @ 21:46:52 Sessions 1 Manual Loads 0 Difficulty Rogue Special Mode None Game No. 448 Rogue 447 Adventurer 0 Explorer 1 Win Type - Total 2 Types 2/0/0/0/0/0/0/0/0 Lore% 70 Gallery% 83 Achievement% 59 Wizard Run 0 Options --------- ASCII 1 Keyboard 0 Movement Vi Keybinds 0 Fullscreen 2 Font 14/Cog Map View 72x54 Tactical HUD 1 Map Filters NONE Filters LOW_CONTRAST(13,24,33) Steam 0 RUN: 0b48e3d8-40e5-4d27-9606-f8b9601cba0f